[Event "EYTCC U18 Open 2019"]
[Site "Pardubice"]
[Date "2019.07.11"]
[Round "1.10"]
[White "Bronstein, Or"]
[Black "Zlatin, Alexander"]
[Result "1/2-1/2"]
[ECO "E73"]
[WhiteElo "2378"]
[BlackElo "2270"]
[Annotator "NA"]
[PlyCount "161"]
[EventDate "2019.07.11"]
[EventType "swiss"]
[EventCountry "CZE"]
[SourceTitle "playchess.com"]
[Source "ChessBase"]
[SourceQuality "1"]
[WhiteTeam "Israel"]
[BlackTeam "Israel"]
[WhiteTeamCountry "ISR"]
[BlackTeamCountry "ISR"]
[TimeControl "40/5400+30:1800+30"]

1. d4 {[%emt 0:00:00]} Nf6 {[%emt 0:00:00]} 2. c4 {[%emt 0:00:00]} g6 {[%emt 0:00:00]} 3. Nc3 {[%emt 0:00:00]} Bg7 {[%emt 0:00:00]} 4. e4 {[%emt 0:00:02]} d6 {[%emt 0:00:00]} 5. Be2 {[%emt 0:01:07]} O-O {[%emt 0:00:16]} 6. Be3 {[%emt 0:00:05]} Nc6 {[%emt 0:00:05]} 7. d5 {[%emt 0:00:04]} Ne5 {[%emt 0:00:05]} 8. f4 {[%emt 0:00:03]} Neg4 {[%emt 0:00:31]} 9. Bd2 {[%emt 0:00:11]} Nh6 {[%emt 0:00:07]} 10. Nf3 {[%emt 0:00:10]} c6 {[%emt 0:00:30]} 11. Be3 {[%emt 0:21:11]} b5 {[%emt 0:11:00]} 12. Nd4 {[%emt 0:22:00]} Nfg4 {[%emt 0:14:21]} 13. Bg1 {[%emt 0:00:26]} Bxd4 {[%emt 0:00:50]} 14. Qxd4 {[%emt 0:03:26]} c5 {[%emt 0:00:39]} 15. Qd2 {[%emt 0:06:40]} b4 {[%emt 0:01:53]} 16. Nd1 {[%emt 0:00:14]} e6 {[%emt 0:03:46]} 17. dxe6 {[%emt 0:17:33]} fxe6 $14 {[%emt 0:00:23]} 18. Nf2 {[%emt 0:00:02]} Nxf2 {[%emt 0:03:48]} 19. Bxf2 {[%emt 0:00:02]} Nf7 {[%emt 0:00:10]} 20. O-O-O {[%emt 0:02:00]} Bb7 {[%emt 0:01:30]} 21. Qe3 {[%emt 0:07:05]} Qf6 {[%emt 0:05:13]} 22. Rhf1 {[%emt 0:05:46]} e5 {[%emt 0:05:27]} 23. f5 {[%emt 0:01:38]} gxf5 {[%emt 0:01:41]} 24. exf5 {[%emt 0:00:07]} Qxf5 {[%emt 0:02:39]} 25. Bh4 {[%emt 0:00:40]} Qe4 {[%emt 0:00:55]} 26. Qg3+ {[%emt 0:02:32]} Qg6 {[%emt 0:00:06]} 27. Bh5 {[%emt 0:03:16]} Qxg3 {[%emt 0:00:39]} 28. hxg3 {[%emt 0:00:05]} Nh6 {[%emt 0:06:16]} 29. g4 {[%emt 0:01:19]} Bxg2 {[%emt 0:01:37]} 30. Rg1 {[%emt 0:02:59]} Bf3 {[%emt 0:02:08]} 31. Rxd6 {[%emt 0:00:01]} Nf7 {[%emt 0:00:09]} 32. Re6 {[%emt 0:03:52]} e4 {[%emt 0:02:40]} 33. Be7 {[%emt 0:01:16]} Rfe8 {[%emt 0:00:04]} 34. Rf1 {[%emt 0:00:22]} Rac8 {[%emt 0:06:09]} 35. Rxe4 {[%emt 0:00:31]} Bxe4 {[%emt 0:00:03]} 36. Bxf7+ {[%emt 0:00:03]} Kg7 {[%emt 0:00:03]} 37. Bxe8 {[%emt 0:00:09]} Rxe8 {[%emt 0:00:04]} 38. Bxc5 {[%emt 0:00:20]} Bd3 {[%emt 0:01:20]} 39. Rf4 {[%emt 0:00:36]} Re2 {[%emt 0:01:14]} 40. Kd1 {[%emt 0:01:28]} Rc2 {[%emt 0:09:00]} 41. Bd4+ {[%emt 0:24:04]} Kg8 {[%emt 0:00:05]} 42. c5 {[%emt 0:01:35]} a5 {[%emt 0:01:16]} 43. Rf3 {[%emt 0:01:32]} Bg6 {[%emt 0:01:16]} 44. Rf6 {[%emt 0:01:20]} Rc4 {[%emt 0:01:06]} 45. Rd6 {[%emt 0:00:29]} b3 {[%emt 0:02:43]} 46. axb3 {[%emt 0:00:23]} Bc2+ {[%emt 0:00:28]} 47. Kd2 {[%emt 0:00:01]} Bxb3 {[%emt 0:00:07]} 48. Kd3 {[%emt 0:00:43]} a4 {[%emt 0:01:58]} 49. Rd7 {[%emt 0:01:11]} h6 {[%emt 0:02:40]} 50. Rd6 {[%emt 0:01:49]} Rc1 {[%emt 0:01:30]} 51. Rxh6 {[%emt 0:01:21]} Rd1+ {[%emt 0:00:38]} 52. Ke4 {[%emt 0:00:38]} Re1+ {[%emt 0:00:28]} 53. Kf4 {[%emt 0:01:16]} Bd5 {[%emt 0:00:06]} 54. Be5 {[%emt 0:00:33]} Rc1 {[%emt 0:00:44]} 55. Bd4 {[%emt 0:00:17]} Re1 {[%emt 0:00:15]} 56. Kf5 {[%emt 0:00:06]} Re4 {[%emt 0:00:57]} 57. Be5 {[%emt 0:00:49]} Rc4 {[%emt 0:00:04]} 58. Rh8+ {[%emt 0:00:47]} Kf7 {[%emt 0:00:04]} 59. Rh7+ {[%emt 0:00:06]} Ke8 {[%emt 0:00:30]} 60. Rh8+ {[%emt 0:00:12]} Kf7 {[%emt 0:00:06]} 61. Rh7+ {[%emt 0:00:24]} Ke8 {[%emt 0:00:01]} 62. Rc7 {[%emt 0:00:18]} Kd8 {[%emt 0:00:26]} 63. g5 {[%emt 0:00:22]} Rc2 {[%emt 0:00:33]} 64. Kg6 {[%emt 0:01:50]} Re2 {[%emt 0:00:12]} 65. Kf6 {[%emt 0:00:23]} Rf2+ {[%emt 0:00:11]} 66. Kg6 {[%emt 0:00:12]} Re2 {[%emt 0:00:04]} 67. Bd6 {[%emt 0:00:47]} Rxb2 {[%emt 0:00:13]} 68. Ra7 {[%emt 0:00:10]} Ra2 {[%emt 0:02:18]} 69. Bc7+ {[%emt 0:00:19]} Kd7 {[%emt 0:00:29]} 70. Bd6+ {[%emt 0:00:08]} Kc6 {[%emt 0:00:49]} 71. Ra6+ {[%emt 0:01:01]} Kd7 {[%emt 0:00:32]} 72. Be5 {[%emt 0:00:32]} Be4+ {[%emt 0:01:57]} 73. Kg7 {[%emt 0:00:10]} a3 {[%emt 0:00:59]} 74. Rd6+ {[%emt 0:00:11]} Kc8 {[%emt 0:00:04]} 75. Rb6 {[%emt 0:01:31]} Kd7 {[%emt 0:00:22]} 76. Rd6+ {[%emt 0:00:24]} Kc8 {[%emt 0:00:04]} 77. Kf7 {[%emt 0:00:28]} Rg2 {[%emt 0:02:41]} 78. Kf6 {[%emt 0:00:43]} a2 {[%emt 0:00:25]} 79. c6 {[%emt 0:00:26]} Rc2 {[%emt 0:00:26]} 80. Ke7 {[%emt 0:00:36]} Rxc6 {[%emt 0:00:32]} 81. Rxc6+ {[%emt 0:00:24]} 1/2-1/2

[Event "EYTCC U18 Open 2019"]
[Site "Pardubice"]
[Date "2019.07.11"]
[Round "1.11"]
[White "Rozen, Eytan"]
[Black "Emanuel, Yahav"]
[Result "0-1"]
[ECO "A05"]
[WhiteElo "2260"]
[BlackElo "2359"]
[Annotator "NA"]
[PlyCount "116"]
[EventDate "2019.07.11"]
[EventType "swiss"]
[EventCountry "CZE"]
[SourceTitle "playchess.com"]
[Source "ChessBase"]
[SourceQuality "1"]
[WhiteTeam "Israel"]
[BlackTeam "Israel"]
[WhiteTeamCountry "ISR"]
[BlackTeamCountry "ISR"]
[TimeControl "40/5400+30:1800+30"]

1. Nf3 {[%emt 0:00:00]} Nf6 {[%emt 0:00:00]} 2. e3 {[%emt 0:00:06]} d5 {[%emt 0:01:18]} 3. b4 {[%emt 0:00:38]} e6 {[%emt 0:03:34]} 4. a3 {[%emt 0:00:15]} a5 {[%emt 0:11:53]} 5. b5 {[%emt 0:00:23]} Nbd7 {[%emt 0:02:53]} 6. d4 {[%emt 0:00:42]} c5 {[%emt 0:08:09]} 7. bxc6 {[%emt 0:01:15]} bxc6 {[%emt 0:00:06]} 8. c4 {[%emt 0:01:13]} Ba6 {[%emt 0:01:50]} 9. Nbd2 {[%emt 0:00:33]} Be7 {[%emt 0:07:13]} 10. Be2 {[%emt 0:00:45]} O-O {[%emt 0:00:23]} 11. O-O {[%emt 0:00:09]} Rb8 {[%emt 0:06:39]} 12. Qc2 {[%emt 0:01:49]} c5 {[%emt 0:02:23]} 13. Bb2 {[%emt 0:03:12]} Nb6 {[%emt 0:02:34]} 14. dxc5 {[%emt 0:03:31]} Bxc5 {[%emt 0:00:47]} 15. Nb3 {[%emt 0:12:03]} Rc8 {[%emt 0:12:31]} 16. Nxc5 {[%emt 0:07:27]} Rxc5 {[%emt 0:00:02]} 17. Bd4 {[%emt 0:04:48]} Rc8 {[%emt 0:00:06]} 18. c5 {[%emt 0:00:58]} Bxe2 {[%emt 0:00:18]} 19. Qxe2 {[%emt 0:00:03]} Nc4 {[%emt 0:01:19]} 20. Rfc1 {[%emt 0:03:06]} Ne4 {[%emt 0:05:12]} 21. Ne5 {[%emt 0:06:06]} Nxc5 {[%emt 0:07:38]} 22. Nxc4 {[%emt 0:10:55]} Nb3 {[%emt 0:02:51]} 23. Qb2 {[%emt 0:08:44]} Nxc1 {[%emt 0:02:23]} 24. Nb6 {[%emt 0:00:27]} Nd3 {[%emt 0:02:05]} 25. Qd2 {[%emt 0:00:34]} Rc6 {[%emt 0:02:10]} 26. Qxd3 {[%emt 0:00:49]} Rxb6 {[%emt 0:00:04]} 27. Bxb6 {[%emt 0:00:11]} Qxb6 {[%emt 0:00:01]} 28. Rb1 {[%emt 0:00:38]} Qc7 {[%emt 0:01:36]} 29. g3 {[%emt 0:01:02]} Rb8 {[%emt 0:03:16]} 30. Rxb8+ {[%emt 0:00:46]} Qxb8 {[%emt 0:00:01]} 31. e4 {[%emt 0:00:44]} Qa8 {[%emt 0:03:02]} 32. exd5 {[%emt 0:00:12]} exd5 {[%emt 0:02:46]} 33. Qd4 {[%emt 0:00:45]} h5 {[%emt 0:05:03]} 34. h4 {[%emt 0:06:19]} Qc6 {[%emt 0:02:01]} 35. Qa7 {[%emt 0:01:06]} a4 {[%emt 0:01:19]} 36. Qb8+ {[%emt 0:00:27]} Kh7 {[%emt 0:00:02]} 37. Qe5 {[%emt 0:00:17]} g6 {[%emt 0:00:22]} 38. Qf4 {[%emt 0:01:46]} Kg8 {[%emt 0:00:42]} 39. Qb8+ {[%emt 0:01:11]} Kg7 {[%emt 0:00:25]} 40. Qb2+ {[%emt 0:01:55]} Qf6 {[%emt 0:01:20]} 41. Qb4 {[%emt 0:30:07]} Qa1+ {[%emt 0:11:23]} 42. Kg2 {[%emt 0:00:00]} Qd1 {[%emt 0:00:13]} 43. Qb5 {[%emt 0:00:00]} Qd4 {[%emt 0:05:45]} 44. Qc6 {[%emt 0:00:00]} Qe4+ {[%emt 0:01:28]} 45. Kh2 {[%emt 0:00:00]} Qc4 {[%emt 0:02:32]} 46. Qd6 {[%emt 0:00:00]} d4 {[%emt 0:01:38]} 47. Qe5+ {[%emt 0:00:00]} Kh7 {[%emt 0:00:35]} 48. Qf4 {[%emt 0:00:00]} Qd5 {[%emt 0:02:59]} 49. Qd2 {[%emt 0:00:00]} d3 {[%emt 0:00:33]} 50. Kg1 {[%emt 0:00:00]} Kg7 {[%emt 0:01:16]} 51. Qb2+ {[%emt 0:00:00]} Kg8 {[%emt 0:00:29]} 52. Qd2 {[%emt 0:00:00]} Qd4 {[%emt 0:02:35]} 53. Kg2 {[%emt 0:00:00]} Qe4+ {[%emt 0:00:08]} 54. f3 {[%emt 0:00:00]} Qd4 {[%emt 0:01:06]} 55. f4 {[%emt 0:00:00]} Qd5+ {[%emt 0:01:22]} 56. Kg1 {[%emt 0:00:00]} Qc5+ {[%emt 0:00:33]} 57. Kg2 {[%emt 0:00:00]} Qc2 {[%emt 0:00:21]} 58. Qf2 {[%emt 0:00:00]} d2 {[%emt 0:00:11]} 0-1

[Event "EYTCC U18 Open 2019"]
[Site "Pardubice"]
[Date "2019.07.11"]
[Round "1.12"]
[White "Globus, Or"]
[Black "Gleizer, Adar"]
[Result "1-0"]
[ECO "C45"]
[WhiteElo "2352"]
[BlackElo "1748"]
[Annotator "ChessBase"]
[PlyCount "55"]
[EventDate "2019.07.11"]
[EventType "swiss"]
[EventCountry "CZE"]
[SourceTitle "playchess.com"]
[Source "ChessBase"]
[SourceQuality "1"]
[WhiteTeam "Israel"]
[BlackTeam "Israel"]
[WhiteTeamCountry "ISR"]
[BlackTeamCountry "ISR"]
[TimeControl "40/5400+30:1800+30"]

1. e4 {[%emt 0:00:00]} e5 {[%emt 0:00:00]} 2. Nf3 {[%emt 0:00:03]} Nc6 {[%emt 0:00:00]} 3. d4 {[%emt 0:00:30]} exd4 {[%emt 0:00:12]} 4. Nxd4 {[%emt 0:00:05]} Nf6 {[%emt 0:00:33]} 5. Nxc6 {[%emt 0:00:04]} bxc6 {[%emt 0:00:12]} 6. e5 {[%emt 0:00:04]} Qe7 {[%emt 0:00:35]} 7. Qe2 {[%emt 0:00:06]} Nd5 {[%emt 0:00:15]} 8. h4 {[%emt 0:00:24]} d6 {[%emt 0:01:18]} 9. c4 {[%emt 0:00:21]} Ba6 {[%emt 0:01:20]} 10. Bg5 {[%emt 0:04:53]} f6 {[%emt 0:01:08]} 11. exf6 {[%emt 0:00:27]} Nxf6 {[%emt 0:00:38]} 12. Bxf6 {[%emt 0:00:50]} gxf6 {[%emt 0:00:18]} 13. Nd2 {[%emt 0:08:00]} O-O-O {[%emt 0:01:39]} 14. Qxe7 {[%emt 0:01:53]} Bxe7 {[%emt 0:00:03]} 15. O-O-O {[%emt 0:00:56]} d5 {[%emt 0:03:54]} 16. b3 {[%emt 0:02:58]} Bb4 {[%emt 0:03:15]} 17. Rh3 {[%emt 0:03:41]} Rhe8 {[%emt 0:08:25]} 18. Kc2 {[%emt 0:03:47]} dxc4 {[%emt 0:09:52]} 19. bxc4 {[%emt 0:01:25]} Rd4 {[%emt 0:04:49]} 20. Bd3 {[%emt 0:03:53]} Red8 {[%emt 0:06:03]} 21. Nb3 {[%emt 0:02:50]} Rf4 {[%emt 0:02:32]} 22. Rf3 {[%emt 0:00:59]} Rxf3 {[%emt 0:00:42]} 23. gxf3 {[%emt 0:00:01]} Be7 {[%emt 0:01:00]} 24. Bf5+ {[%emt 0:04:09]} Kb8 {[%emt 0:00:14]} 25. Rb1 {[%emt 0:00:04]} Ka8 {[%emt 0:05:20]} 26. Be4 {[%emt 0:00:37]} Rb8 {[%emt 0:02:27]} 27. Bxc6+ {[%emt 0:00:21]} Bb7 {[%emt 0:00:10]} 28. Na5 {[%emt 0:00:10]} 1-0

[Event "EYTCC U18 Open 2019"]
[Site "Pardubice"]
[Date "2019.07.11"]
[Round "1.13"]
[White "Blohberger, Felix"]
[Black "Jakab, Bela"]
[Result "1-0"]
[ECO "C07"]
[WhiteElo "2476"]
[BlackElo "2278"]
[Annotator "ChessBase"]
[PlyCount "93"]
[EventDate "2019.07.11"]
[EventType "swiss"]
[EventCountry "CZE"]
[SourceTitle "playchess.com"]
[Source "ChessBase"]
[SourceQuality "1"]
[WhiteTeam "Austria"]
[BlackTeam "Slovakia"]
[WhiteTeamCountry "AUT"]
[BlackTeamCountry "SVK"]
[TimeControl "40/5400+30:1800+30"]

1. e4 {[%emt 0:00:00]} e6 {[%emt 0:00:00]} 2. d4 {[%emt 0:00:00]} d5 {[%emt 0:00:00]} 3. Nd2 {[%emt 0:00:00]} c5 {[%emt 0:00:00]} 4. Ngf3 {[%emt 0:00:16]} cxd4 {[%emt 0:00:01]} 5. Nxd4 {[%emt 0:00:49]} Nf6 {[%emt 0:00:15]} 6. exd5 {[%emt 0:00:57]} Qxd5 {[%emt 0:00:08]} 7. Nb5 {[%emt 0:19:56]} Na6 {[%emt 0:00:10]} 8. Nc3 {[%emt 0:02:38]} Qd8 {[%emt 0:01:29]} 9. Be2 {[%emt 0:02:32]} Bb4 {[%emt 0:01:54]} 10. O-O {[%emt 0:01:00]} Bxc3 {[%emt 0:01:33]} 11. bxc3 {[%emt 0:00:06]} O-O {[%emt 0:00:19]} 12. Ba3 {[%emt 0:05:13]} Re8 {[%emt 0:00:50]} 13. Nc4 {[%emt 0:01:35]} Qc7 {[%emt 0:13:10]} 14. Qd6 {[%emt 0:06:27]} Bd7 {[%emt 0:03:10]} 15. Qxc7 {[%emt 0:17:19]} Nxc7 {[%emt 0:00:08]} 16. Ne5 {[%emt 0:00:22]} Ba4 {[%emt 0:06:16]} 17. Bf3 {[%emt 0:04:55]} Nb5 {[%emt 0:04:47]} 18. Bb2 {[%emt 0:00:50]} Nd6 {[%emt 0:01:07]} 19. Rfd1 {[%emt 0:04:31]} Nf5 {[%emt 0:08:29]} 20. Rd2 {[%emt 0:05:45]} Rac8 {[%emt 0:06:04]} 21. c4 {[%emt 0:04:13]} Nh4 {[%emt 0:02:21]} 22. Be2 {[%emt 0:04:26]} Ng6 {[%emt 0:02:35]} 23. f3 {[%emt 0:02:27]} b6 {[%emt 0:04:04]} 24. Rb1 {[%emt 0:03:13]} Nxe5 {[%emt 0:03:34]} 25. Bxe5 {[%emt 0:00:05]} Nd7 {[%emt 0:00:27]} 26. Bd4 {[%emt 0:03:24]} e5 {[%emt 0:01:39]} 27. Be3 {[%emt 0:00:39]} Nc5 {[%emt 0:01:46]} 28. Rb4 {[%emt 0:01:06]} Bc6 {[%emt 0:00:35]} 29. Bxc5 {[%emt 0:00:28]} bxc5 {[%emt 0:00:06]} 30. Rb3 {[%emt 0:00:08]} f6 {[%emt 0:04:55]} 31. Kf2 {[%emt 0:04:15]} Kf8 {[%emt 0:02:10]} 32. Ra3 {[%emt 0:02:27]} Rc7 {[%emt 0:05:28]} 33. Ra5 {[%emt 0:00:14]} e4 {[%emt 0:02:03]} 34. fxe4 {[%emt 0:01:22]} Bxe4 {[%emt 0:00:11]} 35. Bf3 {[%emt 0:01:09]} Re6 {[%emt 0:01:59]} 36. Re2 {[%emt 0:01:26]} f5 {[%emt 0:00:08]} 37. Bxe4 {[%emt 0:00:16]} fxe4 {[%emt 0:00:05]} 38. Ke3 {[%emt 0:00:26]} Ke8 {[%emt 0:00:40]} 39. Rf2 {[%emt 0:00:59]} Re5 {[%emt 0:00:39]} 40. Rd2 {[%emt 0:00:36]} Ke7 {[%emt 0:03:23]} 41. Rd5 {[%emt 0:03:04]} Rxd5 {[%emt 0:04:24]} 42. cxd5 {[%emt 0:00:29]} Rb7 {[%emt 0:04:12]} 43. Kxe4 {[%emt 0:03:14]} Kd6 {[%emt 0:02:23]} 44. Ra6+ {[%emt 0:00:24]} Kd7 {[%emt 0:00:31]} 45. Ke5 {[%emt 0:00:23]} Rc7 {[%emt 0:01:10]} 46. Rd6+ {[%emt 0:00:11]} Ke7 {[%emt 0:00:18]} 47. Rc6 {[%emt 0:00:28]} 1-0

[Event "EYTCC U18 Open 2019"]
[Site "Pardubice"]
[Date "2019.07.11"]
[Round "1.14"]
[White "Bugar, Peter"]
[Black "Horvath, Dominik"]
[Result "0-1"]
[ECO "A37"]
[WhiteElo "2002"]
[BlackElo "2424"]
[Annotator "NA"]
[PlyCount "92"]
[EventDate "2019.07.11"]
[EventType "swiss"]
[EventCountry "CZE"]
[SourceTitle "playchess.com"]
[Source "ChessBase"]
[SourceQuality "1"]
[WhiteTeam "Slovakia"]
[BlackTeam "Austria"]
[WhiteTeamCountry "SVK"]
[BlackTeamCountry "AUT"]
[TimeControl "40/5400+30:1800+30"]

1. c4 {[%emt 0:00:00]} c5 {[%emt 0:00:00]} 2. Nc3 {[%emt 0:00:00]} g6 {[%emt 0:00:00]} 3. g3 {[%emt 0:00:00]} Bg7 {[%emt 0:00:04]} 4. Bg2 {[%emt 0:00:01]} Nc6 {[%emt 0:00:07]} 5. Nf3 {[%emt 0:00:06]} e5 {[%emt 0:00:07]} 6. O-O {[%emt 0:00:13]} Nge7 {[%emt 0:00:05]} 7. d3 {[%emt 0:00:17]} O-O {[%emt 0:01:06]} 8. Nd2 {[%emt 0:00:44]} d6 {[%emt 0:00:47]} 9. a3 {[%emt 0:01:03]} a5 {[%emt 0:02:29]} 10. Nd5 {[%emt 0:04:50]} Bg4 {[%emt 0:11:36]} 11. h3 {[%emt 0:04:11]} Be6 {[%emt 0:01:49]} 12. Rb1 {[%emt 0:01:06]} f5 {[%emt 0:01:31]} 13. e3 {[%emt 0:04:01]} Rb8 {[%emt 0:02:49]} 14. b3 {[%emt 0:05:58]} b5 {[%emt 0:03:10]} 15. Bb2 {[%emt 0:01:50]} a4 {[%emt 0:06:58]} 16. Nxe7+ {[%emt 0:11:56]} Nxe7 {[%emt 0:00:07]} 17. cxb5 {[%emt 0:00:14]} Rxb5 {[%emt 0:06:11]} 18. bxa4 {[%emt 0:00:46]} Rb8 {[%emt 0:00:04]} 19. Ba1 {[%emt 0:10:13]} Qd7 {[%emt 0:06:35]} 20. Qc2 {[%emt 0:03:56]} Nc6 {[%emt 0:09:30]} 21. Nc4 {[%emt 0:08:20]} f4 {[%emt 0:03:15]} 22. exf4 {[%emt 0:05:42]} exf4 {[%emt 0:00:08]} 23. Bxg7 {[%emt 0:03:25]} Kxg7 {[%emt 0:00:10]} 24. Nb6 {[%emt 0:09:03]} Qe8 {[%emt 0:05:11]} 25. gxf4 {[%emt 0:03:43]} Nd4 {[%emt 0:00:57]} 26. Qd2 {[%emt 0:04:54]} Rxf4 {[%emt 0:01:11]} 27. Rfe1 {[%emt 0:04:46]} Qf7 {[%emt 0:06:34]} 28. Nc4 {[%emt 0:03:54]} Rxb1 {[%emt 0:07:52]} 29. Rxb1 {[%emt 0:00:09]} d5 {[%emt 0:05:53]} 30. Nd6 {[%emt 0:04:17]} Qf8 {[%emt 0:00:06]} 31. Rb7+ {[%emt 0:00:26]} Kg8 {[%emt 0:03:02]} 32. Nb5 {[%emt 0:01:27]} Nf3+ {[%emt 0:02:20]} 33. Bxf3 {[%emt 0:00:06]} Rxf3 {[%emt 0:00:01]} 34. Qe2 {[%emt 0:01:05]} Qf6 {[%emt 0:00:48]} 35. Rb8+ {[%emt 0:01:10]} Kg7 {[%emt 0:01:08]} 36. Re8 {[%emt 0:02:05]} Qg5+ {[%emt 0:02:15]} 37. Kf1 {[%emt 0:00:27]} Rxh3 {[%emt 0:01:17]} 38. Qxe6 {[%emt 0:01:05]} Rh1+ {[%emt 0:00:01]} 39. Ke2 {[%emt 0:00:09]} Qh5+ {[%emt 0:00:02]} 40. Kd2 {[%emt 0:01:43]} Qd1+ {[%emt 0:00:05]} 41. Kc3 {[%emt 0:04:54]} Qa1+ {[%emt 0:00:40]} 42. Kd2 {[%emt 0:00:55]} Qc1+ {[%emt 0:00:28]} 43. Ke2 {[%emt 0:00:11]} Qd1+ {[%emt 0:00:16]} 44. Ke3 {[%emt 0:00:20]} Re1+ {[%emt 0:00:04]} 45. Kf4 {[%emt 0:00:21]} Rxe6 {[%emt 0:00:04]} 46. Rxe6 {[%emt 0:00:08]} Qxa4+ {[%emt 0:00:02]} 0-1

[Event "EYTCC U18 Open 2019"]
[Site "Pardubice"]
[Date "2019.07.11"]
[Round "1.15"]
[White "Leisch, Lukas"]
[Black "Viczencz, Peter"]
[Result "1/2-1/2"]
[ECO "A13"]
[WhiteElo "2327"]
[BlackElo "2014"]
[Annotator "NA"]
[PlyCount "106"]
[EventDate "2019.07.11"]
[EventType "swiss"]
[EventCountry "CZE"]
[SourceTitle "playchess.com"]
[Source "ChessBase"]
[SourceQuality "1"]
[WhiteTeam "Austria"]
[BlackTeam "Slovakia"]
[WhiteTeamCountry "AUT"]
[BlackTeamCountry "SVK"]
[TimeControl "40/5400+30:1800+30"]

1. c4 {[%emt 0:00:00]} e6 {[%emt 0:00:00]} 2. Nc3 {[%emt 0:00:05]} d5 {[%emt 0:00:00]} 3. e3 {[%emt 0:00:10]} Nf6 {[%emt 0:00:02]} 4. Nf3 {[%emt 0:00:09]} dxc4 {[%emt 0:00:35]} 5. Bxc4 {[%emt 0:00:10]} a6 {[%emt 0:00:03]} 6. a4 {[%emt 0:00:25]} c5 {[%emt 0:00:08]} 7. O-O {[%emt 0:00:52]} Bd6 {[%emt 0:01:11]} 8. Qe2 {[%emt 0:02:53]} Qc7 {[%emt 0:02:59]} 9. d4 {[%emt 0:07:30]} O-O {[%emt 0:06:30]} 10. Rd1 {[%emt 0:05:22]} b6 {[%emt 0:12:15]} 11. d5 {[%emt 0:12:37]} exd5 {[%emt 0:10:37]} 12. Nxd5 {[%emt 0:00:30]} Nxd5 {[%emt 0:00:07]} 13. Bxd5 {[%emt 0:00:17]} Ra7 {[%emt 0:00:10]} 14. Ng5 {[%emt 0:12:44]} h6 {[%emt 0:03:54]} 15. Nxf7 {[%emt 0:12:32]} Rxf7 {[%emt 0:00:20]} 16. Bxf7+ {[%emt 0:00:49]} Kxf7 {[%emt 0:00:47]} 17. Qh5+ {[%emt 0:00:43]} Kf8 {[%emt 0:05:02]} 18. e4 {[%emt 0:03:51]} Be5 {[%emt 0:05:00]} 19. Ra3 {[%emt 0:03:22]} Qe7 {[%emt 0:17:02]} 20. Rf3+ {[%emt 0:13:04]} Kg8 {[%emt 0:00:07]} 21. Bxh6 {[%emt 0:06:50]} Rd7 {[%emt 0:05:37]} 22. Rxd7 {[%emt 0:03:23]} Nxd7 {[%emt 0:00:44]} 23. Bg5 {[%emt 0:02:41]} Nf6 {[%emt 0:05:38]} 24. Bxf6 {[%emt 0:00:34]} Bxf6 {[%emt 0:00:09]} 25. Qd5+ {[%emt 0:01:26]} Be6 {[%emt 0:01:58]} 26. Qa8+ {[%emt 0:00:26]} Qd8 {[%emt 0:00:09]} 27. Qxd8+ {[%emt 0:00:10]} Bxd8 {[%emt 0:00:08]} 28. Rd3 {[%emt 0:03:21]} Bc7 {[%emt 0:00:17]} 29. b3 {[%emt 0:00:08]} b5 {[%emt 0:01:09]} 30. axb5 {[%emt 0:00:32]} axb5 {[%emt 0:00:10]} 31. g3 {[%emt 0:00:49]} c4 {[%emt 0:00:48]} 32. bxc4 {[%emt 0:00:05]} bxc4 {[%emt 0:00:04]} 33. Ra3 {[%emt 0:00:48]} Be5 {[%emt 0:00:59]} 34. Kf1 {[%emt 0:01:20]} Bb2 {[%emt 0:01:02]} 35. Ra8+ {[%emt 0:00:10]} Kh7 {[%emt 0:00:21]} 36. Ke2 {[%emt 0:00:38]} c3 {[%emt 0:00:33]} 37. Kd3 {[%emt 0:00:43]} Bb3 {[%emt 0:04:08]} 38. Rc8 {[%emt 0:00:15]} c2 {[%emt 0:00:08]} 39. Rxc2 {[%emt 0:00:05]} Bxc2+ {[%emt 0:00:03]} 40. Kxc2 {[%emt 0:00:06]} Bd4 {[%emt 0:00:04]} 41. f3 {[%emt 0:21:02]} Bg1 {[%emt 0:00:12]} 42. h3 {[%emt 0:00:39]} Bh2 {[%emt 0:00:08]} 43. g4 {[%emt 0:00:05]} Kg6 {[%emt 0:00:31]} 44. Kd3 {[%emt 0:00:46]} Bf4 {[%emt 0:00:07]} 45. Kd4 {[%emt 0:01:24]} Kf6 {[%emt 0:00:12]} 46. h4 {[%emt 0:02:53]} Ke6 {[%emt 0:01:43]} 47. h5 {[%emt 0:03:54]} Kf6 {[%emt 0:01:52]} 48. e5+ {[%emt 0:02:28]} Bxe5+ {[%emt 0:00:07]} 49. Ke4 {[%emt 0:00:06]} Bc3 {[%emt 0:00:43]} 50. f4 {[%emt 0:00:19]} Bb2 {[%emt 0:00:50]} 51. g5+ {[%emt 0:00:28]} Ke6 {[%emt 0:00:24]} 52. f5+ {[%emt 0:00:19]} Kf7 {[%emt 0:00:09]} 53. f6 {[%emt 0:00:56]} gxf6 {[%emt 0:00:09]} 1/2-1/2

[Event "EYTCC U18 Open 2019"]
[Site "Pardubice"]
[Date "2019.07.11"]
[Round "1.16"]
[White "Matis, Tibor"]
[Black "Morgunov, Marc"]
[Result "0-1"]
[ECO "B92"]
[WhiteElo "1862"]
[BlackElo "2314"]
[Annotator "RC"]
[PlyCount "52"]
[EventDate "2019.07.11"]
[EventType "swiss"]
[EventCountry "CZE"]
[WhiteTeam "Slovakia"]
[BlackTeam "Austria"]
[WhiteTeamCountry "SVK"]
[BlackTeamCountry "AUT"]
[TimeControl "40/5400+30:1800+30"]

1. e4 {[%emt 0:00:00]} c5 {[%emt 0:00:00]} 2. Nf3 {[%emt 0:00:08]} d6 {[%emt 0:00:00]} 3. d4 {[%emt 0:00:05]} cxd4 {[%emt 0:00:00]} 4. Nxd4 {[%emt 0:00:06]} Nf6 {[%emt 0:00:00]} 5. Nc3 {[%emt 0:00:29]} a6 {[%emt 0:00:00]} 6. Be2 {[%emt 0:01:02]} e5 {[%emt 0:00:42]} 7. Nf3 {[%emt 0:01:01]} Be7 {[%emt 0:00:19]} 8. O-O {[%emt 0:00:11]} O-O {[%emt 0:00:46]} 9. Bg5 {[%emt 0:03:53]} Be6 {[%emt 0:00:47]} 10. Bxf6 {[%emt 0:01:54]} Bxf6 {[%emt 0:00:06]} 11. Nd5 {[%emt 0:00:06]} Nd7 {[%emt 0:02:59]} 12. c4 {[%emt 0:02:52]} Be7 {[%emt 0:05:24]} 13. Nd2 {[%emt 0:10:17]} Bxd5 {[%emt 0:07:14]} 14. cxd5 {[%emt 0:00:30]} g6 {[%emt 0:06:12]} 15. g4 {[%emt 0:10:51]} Bg5 {[%emt 0:03:25]} 16. Bf3 {[%emt 0:09:06]} Bf4 {[%emt 0:04:22]} 17. Bg2 {[%emt 0:01:28]} Rc8 {[%emt 0:02:14]} 18. b3 {[%emt 0:06:21]} b5 {[%emt 0:08:23]} 19. Rc1 {[%emt 0:08:05]} Qa5 {[%emt 0:05:38]} 20. b4 {[%emt 0:08:16]} Qxb4 {[%emt 0:02:22]} 21. Rxc8 {[%emt 0:00:13]} Rxc8 {[%emt 0:00:05]} 22. Nb3 {[%emt 0:00:06]} a5 {[%emt 0:02:09]} 23. g5 {[%emt 0:03:12]} a4 {[%emt 0:02:49]} 24. Na1 {[%emt 0:09:28]} Qb2 {[%emt 0:04:32]} 25. Bh3 {[%emt 0:03:54]} Rc1 {[%emt 0:02:32]} 26. Qd3 {[%emt 0:08:13]} Nc5 {[%emt 0:01:16]} 0-1